Cogmind - Beta 15 X1 @@@ ROGUE MODE // 2024.11.09 @ 15:48:55 Player: Sandwich Result: Destroyed by O9-5N6(R) with Subdweller Machine Gun Performance ------------- Evolutions (0) 0 Regions Visited (2) 400 Robots Destroyed (9) 45 Value Destroyed (245) 245 Prototype IDs (1) 20 Alien Tech Used (0) 0 Bonus (0) 0 TOTAL SCORE: 710 Bonus ------- None Cogmind --------- Core Integrity 0/250 Matter 218/300 Energy 250/250 System Corruption 0% Temperature Cool (6) Movement Rolling (215) Ox9 Location -10/Subcaves Parts ------- > --- POWER (1) -------- Ion Engine > --- PROPULSION (2) --- Light Treads Wheel > --- UTILITY (2) ------ Huge Storage Unit Structural Scanner > --- WEAPON (2) ------- Rocket Launcher Rocket Launcher > --- INVENTORY (25) --- Light Treads Aluminum Leg Aluminum Leg Compact Wheel Disposable Heat Sink Seismic Detector Medium Laser Small Laser Light Assault Rifle Improved Assault Rifle Improved Assault Rifle Improved Assault Rifle Rocket Launcher Rocket Launcher Peak State ------------ > --- POWER ------------ Ion Engine > --- PROPULSION ------- Light Treads Wheel > --- UTILITY ---------- Huge Storage Unit Structural Scanner > --- WEAPON ----------- Improved Assault Rifle Rocket Launcher > --- INVENTORY -------- Ion Engine Light Treads Aluminum Leg Aluminum Leg Compact Wheel Disposable Heat Sink Seismic Detector Medium Laser Small Laser Light Assault Rifle Improved Assault Rifle Improved Assault Rifle Rocket Launcher Rocket Launcher Rocket Launcher [Rating: 12] Favorites ----------- Power Ion Engine Engine Ion Engine Propulsion Light Treads Treads Light Treads Wheel Compact Wheel Utility Structural Scanner Device Structural Scanner Storage Huge Storage Unit Weapon Rocket Launcher Energy Gun Medium Laser Ballistic Gun Improved Assault Rifle Launcher Rocket Launcher Build | -11 -10 -10 ------- Run | Yrd Mat Sub Slots Evolved . | . . . Power . | . . . Propulsion . | . . . Utility . | . . . Weapon . | . . . Parts Attached 15 | 7 4 4 Power 2 | 1 . 1 Engine 2 | 1 . 1 Core . | . . . Reactor . | . . . Propulsion 3 | 2 . 1 Treads 1 | 1 . . Leg . | . . . Wheel 2 | 1 . 1 Hover . | . . . Flight . | . . . Utility 4 | 2 2 . Device 2 | 1 1 . Storage 2 | 1 1 . Processor . | . . . Hackware . | . . . Protection . | . . . Artifact . | . . . Weapon 6 | 2 2 2 Energy Gun 2 | 1 1 . Energy Cannon . | . . . Ballistic Gun 2 | 1 1 . Ballistic Cannon . | . . . Launcher 2 | . . 2 Special Weapon . | . . . Impact Weapon . | . . . Slashing Weapon . | . . . Piercing Weapon . | . . . Special Melee Weapon . | . . . Unidentified Prototypes 1 | . 1 . Parts Lost 3 | . 1 2 Power 1 | . . 1 Propulsion 1 | . . 1 Utility . | . . . Weapon 1 | . 1 . Highest Loss Streak 1 | . 1 1 To Critical Strikes . | . . . Average Backups 10 | 2 7 14 Power . | . 1 . Propulsion 4 | 1 4 4 Utility 1 | . . 1 Weapon 4 | . 1 8 Tool/Special . | . . . Unused Backups 9 | . . 9 Power . | . . . Propulsion 4 | . . 4 Utility 1 | . . 1 Weapon 4 | . . 4 Tool/Special . | . . . Average Slot Usage (%) 99 | . 99 98 Engine 13 | . 14 13 Treads 14 | . 14 14 Wheel 13 | . 14 13 Device 14 | . 14 14 Storage 14 | . 14 14 Energy Gun 12 | . 21 4 Ballistic Gun 5 | . 6 5 Launcher 9 | . . 18 Peak Build Rating 12 | 7 11 12 Average Rating 9 | 5 7 10 On Entrance 6 | . 7 11 Naked Turns . | . . . Heaviest Build 94 | 13 91 94 Greatest Support 20 | 20 16 16 Greatest Overweight (x) 9 | . 5 9 Average Overweight (x) 4 | . 2 8 Largest Inventory Capacity 25 | 8 25 25 Average Capacity 20 | 6 17 25 Most Carried 15 | 5 15 15 Average Carried 10 | 2 7 14 Final Capacity 25 | 8 25 25 Final Carried 15 | 5 15 14 Class Distribution -------------------- 100% | Mutant Dominant Class ---------------- Mutant | -10/Materials Mutant | -10/Subcaves Resources | -11 -10 -10 ----------- Run | Yrd Mat Sub Matter Collected 424 | 267 44 113 Remotely . | . . . Salvage Created 287 | 14 120 153 Parts 17 | 3 7 7 Haulers Intercepted 1 | . 1 . Recyclers Shooed . | . . . Parts Field Recycled . | . . . Retrieved Matter . | . . . Parts Self-Destructed 9 | . . 9 Prevented . | . . . Kills | -11 -10 -10 ------- Run | Yrd Mat Sub Combat Hostiles Destroyed 6 | . 1 5 Guns 3 | . 1 2 AOE 3 | . . 3 Classes Destroyed 5 | 1 3 1 Worker 1 | . 1 . Tunneler 1 | 1 . . Hauler 1 | . 1 . Grunt 3 | . 1 2 Subdweller 3 | . . 3 Best Kill Streak 2 | 1 2 2 Combat Bots Only 2 | . 1 2 Max Kills in Single Turn 2 | 1 2 2 Gunslinging . | . . . Exploded 2 | . . 2 Melee . | . . . Uniques/NPCs Destroyed . | . . . Combat | -11 -10 -10 -------- Run | Yrd Mat Sub Hostile Shots Fired 27 | . 11 16 Missed 3 | . 1 2 Damage Taken 616 | . 139 477 Core 251 | . 44 207 Absorbed by Shields . | . . . Core Remaining (%) 100 | 100 . . Volleys Fired 28 | 3 13 12 Largest 2 | 2 2 2 Hottest 90 | 60 90 73 Shots Fired 55 | 6 25 24 Gun 44 | 6 25 13 Cannon . | . . . Launcher 11 | . . 11 Special . | . . . Kinetic 19 | 3 8 8 Thermal 25 | 3 17 5 Explosive 11 | . . 11 Electromagnetic . | . . . Robot Hit Streak 7 | 4 5 7 Robot Miss Streak 2 | 1 2 2 Penetration Max . | . . . Secondary Targets . | . . . Shots Hit Robots 34 | 4 15 15 Core Hits 15 | 1 6 8 Critical Kills . | . . . Critical Parts Destroyed . | . . . Critical Strikes 2 | . 2 . Burn 2 | . 2 . Melee Attacks . | . . . Impact . | . . . Slashing . | . . . Piercing . | . . . Sneak Attacks . | . . . Combat Hostiles . | . . . Follow-up Attacks . | . . . Damage Inflicted 816 | 36 164 616 Guns 338 | 36 164 138 Cannons . | . . . Explosions 478 | . . 478 Melee . | . . . Ramming . | . . . Kinetic 138 | 15 48 75 Thermal 200 | 21 116 63 Explosive 478 | . . 478 Electromagnetic . | . . . Impact . | . . . Slashing . | . . . Piercing . | . . . Highest Corruption . | . . . Average Corruption . | . . . Corruption Purged . | . . . Corruption Blocked . | . . . Overload Shots . | . . . Overflow Damage 11 | . . 11 Projectiles . | . . . Explosions 11 | . . 11 Melee . | . . . Knockbacks . | . . . Impact . | . . . Kinetic . | . . . Secondary . | . . . Self-Inflicted Damage 9 | . . 9 Shots 1 | . . 1 Rammed . | . . . Targets Rammed . | . . . Kicked . | . . . Crushed . | . . . Highest Temperature 117 | 20 117 . Average Temperature 36 | 15 40 . Received Heat Transfer 111 | . 75 36 Siege Activations . | . . . Martial Activations . | . . . Shielding Activations . | . . . Robots Disrupted . | . . . Combat Hostiles . | . . . Robots Corrupted . | . . . Combat Hostiles . | . . . Parts Fried . | . . . Impact Corruptions . | . . . Robots Melted . | . . . Combat Hostiles . | . . . Parts Melted . | . . . Heat Transferred 681 | 50 446 185 Parts Sabotaged . | . . . Parts Stolen . | . . . Parts Stripped . | . . . Power Chain Reactions . | . . . Alert | -11 -10 -10 ------- Run | Yrd Mat Sub Maximum Alert Level . | . . . Low Security (%) 100 | 100 100 . Level 1 . | . . . Level 2 . | . . . Level 3 . | . . . Level 4 . | . . . Level 5 . | . . . High Security . | . . . Max Security . | . . . Peak Influence 40 | 5 40 . Initial . | . . . Average 2 | . 3 . Influence Increases 121 | 5 66 50 Destroy 0b10 Robot/C 60 | . 20 40 Destroy 0b10 Robot/NC 15 | 5 10 . Destroy Leader 12 | . 2 10 Successful Hack 4 | . 4 . Lose Combat Pursuer 30 | . 30 . Influence Decreases 117 | 5 59 53 Time Decay 114 | 5 59 50 Lost Part 3 | . . 3 Squads Dispatched . | . . . Investigation . | . . . Extermination . | . . . Reinforcement . | . . . Assault . | . . . Garrison . | . . . Intercept . | . . . Searches Triggered . | . . . Construction Impeded . | . . . Haulers Reinforced . | . . . Active Scanning Responses . | . . . Cargo Convoy Interrupts . | . . . Stealth | -11 -10 -10 --------- Run | Yrd Mat Sub Distress Signals . | . . . Communications Jammed . | . . . Distress Signals . | . . . Times Spotted 17 | . 12 5 Peak Tracking Total 4 | . 4 1 Tactical Retreats 2 | . 2 . Traps | -11 -10 -10 ------- Run | Yrd Mat Sub Traps Triggered . | . . . Indirectly . | . . . Trap Hack Attempts . | . . . Triggered . | . . . Disarmed . | . . . Reprogrammed . | . . . Reused . | . . . Traps Extracted . | . . . Installed . | . . . Triggered . | . . . Machines | -11 -10 -10 ---------- Run | Yrd Mat Sub Machines Disabled . | . . . Max in Single Turn . | . . . Machines Repaired . | . . . Machines Dismantled . | . . . Machines Sabotaged . | . . . Overloaded Fab Kills . | . . . Hacking | -11 -10 -10 --------- Run | Yrd Mat Sub Machines Accessed 3 | . 3 . Terminals 3 | . 3 . Fabricators . | . . . Repair Stations . | . . . Recycling Units . | . . . Scanalyzers . | . . . Garrison Access . | . . . Total Hacks 7 | . 7 . Successful 3 | . 3 . Failed 4 | . 4 . Catastrophic . | . . . Database Lockouts . | . . . Manual 7 | . 7 . Terminals 7 | . 7 . Fabricators . | . . . Repair Stations . | . . . Recycling Units . | . . . Scanalyzers . | . . . Garrison Access . | . . . Terminal Hacks . | . . . Fabricator Hacks . | . . . Repair Station Hacks . | . . . Recycling Unit Hacks . | . . . Scanalyzer . | . . . Garrison Access Hacks . | . . . Unauthorized Hacks 3 | . 3 . Terminals 3 | . 3 . Botnet 3 | . 3 . Fabricators . | . . . Repair Stations . | . . . Recycling Units . | . . . Scanalyzers . | . . . Garrison Access . | . . . Data Cores Recovered . | . . . Used . | . . . Hacking Detections 3 | . 3 . Full Trace Events . | . . . Feedback Events . | . . . Feedback Blocked . | . . . Robot Schematics Acquired . | . . . Robots Built . | . . . Authchips . | . . . Time . | . . . Total Robot Build Rating . | . . . Part Schematics Acquired . | . . . Parts Built . | . . . Authchips . | . . . Time . | . . . Total Part Build Rating . | . . . Parts Repaired . | . . . Time . | . . . Parts Recycled . | . . . Recycled Matter . | . . . Retrieved Matter . | . . . Retrieved Components . | . . . Parts Scanalyzed . | . . . Part Schematics Acquired . | . . . Parts Damaged . | . . . Bothacking | -11 -10 -10 ------------ Run | Yrd Mat Sub Used RIF Installer . | . . . Robots Hacked . | . . . Non-combat . | . . . Combat . | . . . Robot Hacks Applied . | . . . Relay Couplers Released . | . . . Fabnet Peak Effective % . | . . . Robots Rewired . | . . . Allies Hacked . | . . . Hacks Repelled . | . . . Allies | -11 -10 -10 -------- Run | Yrd Mat Sub Total Allies . | . . . Largest Group . | . . . Highest-Rated Group . | . . . Highest-Rated Ally . | . . . Total Orders . | . . . Ally Attacks . | . . . Total Damage . | . . . Kills . | . . . Allies Corrupted . | . . . Allies Melted . | . . . Intel | -11 -10 -10 ------- Run | Yrd Mat Sub Active Infowar (turns) 1098 | 11 531 556 Structural 1002 | . 446 556 Seismic 96 | 11 85 . Robot Analysis Total . | . . . Derelict Logs Recovered . | . . . Drone Launches . | . . . Drone Recoveries . | . . . Exploration | -11 -10 -10 ------------- Run | Yrd Mat Sub Turns Passed 1157 | 70 531 556 Spaces Moved 576 | 46 291 239 Core 4 | 4 . . Treads 1 | 1 . . Legs . | . . . Wheels 571 | 41 291 239 Hover . | . . . Flight . | . . . Fastest Speed 50 | 50 100 175 Average Speed 164 | 96 135 213 Slowest Speed 215 | 160 175 215 Overloaded Moves . | . . . Propulsion Burnouts . | . . . Robots Hopped . | . . . Cave-ins Triggered . | . . . Exploration Rate (%) 25 | 4 49 23 Regions Visited 2 Branch Regions 1 Pre-discovered Areas . | . . . Known Exits Taken . | . . . Unknown Exits Taken 2 | 1 1 . Scrap Searched . | . . . Spaces Dug . | . . . Terrain Destroyed 67 | . . 67 Melee . | . . . Projectile . | . . . AOE 67 | . . 67 Terrain Rammed . | . . . Walls Destroyed . | . . . Machines Disabled . | . . . Actions | -11 -10 -10 --------- Run | Yrd Mat Sub Total 725 | 62 403 260 Wait 90 | 2 84 4 Move 574 | 45 290 239 Hop . | . . . Pick Up 14 | 5 8 1 Fast Attach 10 | 7 3 . Attach 2 | . . 2 Detach 2 | . 2 . Swap 4 | . 2 2 Drop 1 | . 1 . Fire 28 | 3 13 12 Melee . | . . . Ram . | . . . Kick . | . . . Crush . | . . . Escape Stasis . | . . . Rewire . | . . . Trap . | . . . Miscellaneous . | . . . Route ------- -11/Scrapyard -10/Materials (discovered 4 exits: [*Mat] / [*Min x2] / [*Sub]) -10/Subcaves History --------- Turn | Location | Event 2 | -11/Scrapyard | Met Revision 17 2 | -11/Scrapyard | Discovered new exit (range 16) 71 | -11/Scrapyard | Entered Materials 186 | -10/Materials | Discovered new exit (range 4) 190 | -10/Materials | Discovered new exit (range 9) 240 | -10/Materials | Discovered new exit (range 16) 308 | -10/Materials | Build established: Mutant 474 | -10/Materials | Discovered new exit (range 6) 602 | -10/Materials | Entered Subcaves 626 | -10/Subcaves | Core integrity fell below 50% 772 | -10/Subcaves | Core integrity fell below 20% 864 | -10/Subcaves | A swath of the cavern ceiling suddenly collapsed 1158 | -10/Subcaves | Ambushed by Subdwellers from Twisted Machinery 1158 | -10/Subcaves | Destroyed by O9-5N6(R) with Subdweller Machine Gun Last Messages --------------- 00775_ Destroyed Sub. Monowheel. 00779_ Ion Engine destroyed. 00781_ KJ-L4K(R) destroyed. 00793_ Acquired 31 matter. 00804_ The unstable cave ceiling collapses. 00807_ Destroyed Scrap Shield. 00807_ QF-W3Q(R) destroyed. 00810_ The unstable cave ceiling collapses. 00828_ Acquired 5 matter. 00834_ The unstable cave ceiling collapses. 00839_ Acquired 12 matter. 00840_ The unstable cave ceiling collapses. 00847_ G-47 Trooper destroyed. 00848_ The unstable cave ceiling collapses. 00852_ Acquired 17 matter. 00858_ Particle Gun fries itself beyond repair. 00859_ Acquired 8 matter. 00864_ 43 Matter crushed. A swath of the cavern ceiling suddenly collapses. 01158_ 6H-QSF(R) emerges from the Twisted Machinery. Map ----- +----------------------------------------------------+ | ?????????????????????????????????????????????????? | | ?????????????????????????????????????????????????? | | ?????????????????????????????????????????????????? | | ?????????????????????????????????????????????????? | | ?????????????????????????????????????????????????? | | ?????????????????????????????????????????????????? | | ?????????????????????????????????????????????????? | | ?????????????????????????????????????????????????? | | ?????????????????????????????????????????????????? | | ?????????????????????????????????????????????????? | | ?????????????????????????????????????????????????? | | ?????????????????????????????????????????????????? | | ?????????????????????????????????????????????????? | | ???????????????###???????????????????????????????? | | ?????????????? ###??????????????????????????????? | | ?????????????? ##??????###?????????????????????? | | ????????????# #??????###?????????????????????? | | ????????????## ??????## "##????????????????? | | ????????????### ?????## #####????#########???? | | ?????????????## ?????#" ###?############??? | | ???????????####### ???#### ######### ###??? | | ??????????? # # ## #####< < ##### ##### | | ??????????? #### ### ##### | | ???????????? # # | | ??????????????? ## | | ????????????##### @ | | ???????????### #### ##### # | | ??????????### ##### ######## | | ??????????## ### #### ###### | | ??????????##"""" ### ? ###### ####?? | | ?????????? "?"" ##?????? ### ###?? | | ??????????????"" ?????????? ## ##?? | | ??????????????"" ????????????### #### | | ?????????????#"" ????????????##### # #### | | ?????????????##"R ?????????????### # ## | | ?????????????###"R ??????????????## ### | | ??????????????##" ###?????????????#### ### | | ???????????????### ###????????????##### ## ## | | ???????????????##" ????????????????### # ## | | ??????????????????????????????????### | | ??????????????????????????????????## # | | ??????????????????????????????????## ### | | ??????????????????????????????????######### #### | | ??????????????????????????????????###############? | | ?????????????????????????????????????????#######?? | | ?????????????????????????????????????????????????? | | ?????????????????????????????????????????????????? | | ?????????????????????????????????????????????????? | | ?????????????????????????????????????????????????? | | ?????????????????????????????????????????????????? | +----------------------------------------------------+ Best States ------------- Heat Dissipation 25 Energy Generation 10 Energy Capacity 250 Matter Stores 300 Matter Capacity 300 Sight Range 16 Terrain Scan Density 10 Evasion (%) 40 Recoil Reduction 1 Item Schematics ----------------- None Robot Schematics ------------------ None Fabricated ------------ Nothing Repaired ---------- Nothing Alien Tech Used ----------------- None Achievements -------------- None Challenges ------------ None Game ------ Seed HardenedBarrageWings Manual? 0 Play Time 00:07:57 Cumulative 250.0 hours Start 2024.11.09 @ 15:43:04 End 2024.11.09 @ 15:48:55 Sessions 1 Manual Loads 0 Difficulty Rogue Special Mode None Game No. 309 Rogue 265 Adventurer 4 Explorer 40 Win Type - Total 12 Types 9/1/1/1/0/0/0/0/0 Lore% 51 Gallery% 72 Achievement% 63 Wizard Run 0 Options --------- Layout 0 ASCII 0 Keyboard 0 Movement Mouse Keybinds 0 Fullscreen 2 Font 24/Smallcaps Map View 76x50 Zoom Use 0% Tactical HUD 1 Map Filters NONE Filters NONE Steam 1 RUN: 8a61b4f1-83fe-4989-adc0-717310d58952